bitfinex/quotes_ETHUSD_20250411
["timestamp","ask_amount","ask_price","bid_price","bid_amount"]
[1744352133075,6.41936,1557.8,1557.6,0.8312]
[1744352133278,6.42013,1557.6,1557.2,7.25274]
[1744352133506,6.42013,1557.6,1557.2,13.67435]
[1744352134290,6.42013,1557.6,1557.3,6.42135]
[1744352134788,6.41978,1557.7,1557.3,12.8425]
[1744352134989,7.17281,1557.8,1557.4,6.42092]
[1744352135194,13.59237,1557.8,1557.4,6.42092]
[1744352135372,6.41991,1557.7,1557.3,6.42136]
[1744352135560,6.42219,1557.1,1557.0,4.5280849]
[1744352135768,6.42111,1557.4,1557.0,7.25357]
[1744352135964,12.84235,1557.4,1557.0,7.25357]
[1744352136297,7.422,1557.5,1557.2,6.42176]
[1744352136298,13.84258,1557.5,1557.2,6.42176]
[1744352137271,7.422,1557.5,1557.2,6.42157]
[1744352138493,13.8426,1557.5,1557.2,6.42157]
[1744352139092,6.42113,1557.4,1557.0,10.9506049]
[1744352139267,13.84258,1557.5,1557.1,6.42181]
[1744352139604,7.422,1557.5,1557.2,12.8431]
[1744352139765,7.422,1557.5,1557.2,6.42154]
[1744352140404,7.422,1557.5,1557.2,12.84315]
[1744352140708,7.422,1557.5,1557.2,6.42154]
[1744352141499,7.422,1557.5,1557.2,12.84319]
[1744352141805,7.422,1557.5,1557.2,6.42154]
[1744352142899,12.84062,1557.6,1557.2,6.42154]
[1744352143115,7.423,1557.8,1557.5,6.42037]
[1744352143413,7.423,1557.8,1557.2,4.5065849]
[1744352143414,6.41848,1558.0,1557.6,0.93545152]
[1744352143584,6.41972,1557.7,1557.6,0.12575152]
[1744352143904,6.42068,1557.5,1557.3,0.35411701]
[1744352144614,6.42031,1557.6,1557.2,0.8097]
[1744352144615,6.42125,1557.4,1557.2,0.8097]
[1744352144771,6.42013,1557.6,1556.9,0.8097]
[1744352144970,6.42013,1557.6,1556.7,3.8051]
[1744352144971,0.7963,1557.3,1556.7,0.9179151]
[1744352145175,6.42268,1557.0,1556.7,0.9179151]
[1744352145382,6.42332,1556.9,1556.7,0.1082151]
[1744352145590,6.42343,1556.8,1556.7,0.1082151]
[1744352148273,10.76973,1556.8,1556.7,0.1082151]
[1744352148901,10.76973,1556.8,1556.7,5.1e-06]
[1744352149102,16.92973,1556.8,1556.7,5.1e-06]
[1744352151700,7.2222,1556.2,1556.1,0.05]
[1744352151904,15.37042,1556.2,1556.1,0.05]
[1744352152414,15.37042,1556.2,1556.1,0.17792678]
[1744352152610,15.37042,1556.2,1556.1,0.05]
[1744352152908,18.92042,1556.2,1556.1,0.05]
[1744352153311,18.92042,1556.2,1556.1,0.17792678]
[1744352153513,18.92042,1556.2,1556.1,0.05]
[1744352153705,21.36846457,1556.2,1556.1,0.17792678]
[1744352153917,22.15326457,1556.2,1556.1,0.05]
[1744352154313,22.15326457,1556.2,1556.1,0.17792678]
[1744352154487,22.15326457,1556.2,1556.1,0.05]
[1744352155818,77.24026457,1556.2,1556.1,0.05]
[1744352156112,77.24026457,1556.2,1556.1,1e-05]
[1744352158216,6.42922,1555.4,1555.1,6.8785299]
[1744352158414,6.43004,1555.2,1555.1,0.4480899]
[1744352159226,6.98004,1555.2,1555.1,0.4480899]
[1744352159389,10.80764,1555.2,1555.1,0.4480899]
[1744352160114,6.43004,1555.2,1555.1,0.4480899]
[1744352160615,6.42924,1555.4,1555.1,0.4480899]
[1744352160917,6.42983,1555.3,1555.1,0.4480899]
[1744352161122,6.43004,1555.2,1555.1,0.4480899]
[1744352161889,6.98004,1555.2,1555.1,0.4480899]
[1744352162091,17.41204,1555.2,1555.1,0.4480899]
[1744352162922,18.23964,1555.2,1555.1,0.4480899]
[1744352163126,21.39724876,1555.2,1555.1,0.4480899]
[1744352165188,20.01964876,1555.2,1555.1,0.4480899]
[1744352165711,20.56964876,1555.2,1555.1,0.5714487]
[1744352165912,20.01964876,1555.2,1555.1,0.5714487]
[1744352166522,13.86204,1555.2,1555.1,0.5714487]
[1744352166922,14.41204,1555.2,1555.1,0.5714487]
[1744352168919,14.41204,1555.2,1555.1,0.4480899]
[1744352169314,13.86204,1555.2,1555.1,0.5714487]
[1744352170029,18.23964,1555.2,1555.1,0.5714487]
[1744352170202,20.706584,1555.2,1555.1,0.4480899]
[1744352171029,20.706584,1555.2,1555.1,0.57220611]
[1744352171221,27.462584,1555.2,1555.1,0.57220611]
[1744352171492,27.462584,1555.2,1555.1,0.4480899]
[1744352171924,27.462584,1555.2,1555.1,0.57220611]
[1744352172712,27.462584,1555.2,1555.1,0.4480899]
[1744352172910,33.622584,1555.2,1555.1,0.4480899]
[1744352173336,34.09739872,1555.2,1555.1,0.4480899]
[1744352173508,89.23639872,1555.2,1555.1,0.4480899]
[1744352175642,89.23639872,1555.2,1555.1,9.9e-06]
[1744352176509,6.43369,1554.4,1554.2,0.8082]
[1744352176713,6.43369,1554.4,1554.1,0.05]
[1744352176714,6.43417,1554.2,1554.1,0.05]
[1744352177133,7.26,1554.4,1554.1,6.48444]
[1744352177340,7.26,1554.4,1554.2,0.8082]
[1744352177947,13.69352,1554.4,1554.2,0.8082]
[1744352178152,6.43376,1554.3,1554.2,0.8082]
[1744352178309,15.062872,1554.4,1554.2,0.8082]
[1744352178818,6.43376,1554.3,1554.2,0.8082]
[1744352179234,15.062872,1554.4,1554.2,0.8082]
[1744352179617,6.43376,1554.3,1554.2,0.8082]
[1744352179842,7.26,1554.4,1554.2,0.8082]
[1744352180374,7.26,1554.4,1554.2,7.24231]
[1744352180946,7.26,1554.4,1554.3,6.43376]
[1744352181249,7.26,1554.4,1554.2,7.24224]
[1744352181448,7.26,1554.4,1554.2,13.67621]
[1744352182064,7.26,1554.4,1554.3,6.43376]
[1744352184453,7.26,1554.4,1554.2,7.24217]
[1744352184751,7.26,1554.4,1554.2,0.8082]
[1744352184951,14.41955,1554.4,1554.2,0.8082]
[1744352185261,20.85322,1554.4,1554.1,0.05]
[1744352185455,6.43382,1554.3,1554.1,0.05]
[1744352186253,12.86782,1554.3,1554.1,0.05]
[1744352186554,14.953362,1554.3,1554.1,0.05]
[1744352186725,14.953232,1554.3,1554.1,0.05]
[1744352186920,6.43417,1554.2,1554.1,0.05]
[1744352188351,6.98417,1554.2,1554.1,0.18133904]
[1744352188548,8.5345072,1554.2,1554.1,0.05]
[1744352188855,11.5345072,1554.2,1554.1,0.05]
[1744352189246,10.9845072,1554.2,1554.1,0.05]
[1744352189659,11.5345072,1554.2,1554.1,0.05]
[1744352189828,11.5345072,1554.2,1554.1,0.1819249]
[1744352190025,11.5345072,1554.2,1554.1,0.05]
[1744352190464,8.5345072,1554.2,1554.1,0.05]
[1744352191079,11.5345072,1554.2,1554.1,0.05]
[1744352192280,11.5345072,1554.2,1553.3,10.1347649]
[1744352192281,0.55,1553.5,1553.1,0.05]
[1744352192461,6.43751,1553.4,1553.2,0.95866359]
[1744352192632,6.4375,1553.4,1553.2,0.95866359]
[1744352192962,7.264,1553.6,1553.2,0.8228]
[1744352193274,13.70066,1553.6,1553.2,0.8228]
[1744352193478,13.70066,1553.6,1553.3,0.13605616]
[1744352194537,6.43749,1553.4,1553.3,0.13605616]
[1744352195266,6.43735,1553.5,1553.3,0.13605616]
[1744352195267,12.8747,1553.5,1553.3,0.13605616]
[1744352196043,6.43749,1553.4,1553.3,0.13605616]
[1744352196369,6.43735,1553.5,1553.3,0.13605616]
[1744352196668,12.87477,1553.5,1553.3,0.13605616]
[1744352196965,6.43735,1553.5,1553.3,0.13605616]
[1744352197181,13.70068,1553.6,1553.3,0.13605616]
[1744352197384,6.43668,1553.6,1553.3,0.13605616]
[1744352199063,20.18392,1553.8,1553.4,0.8228]
[1744352199484,20.18392,1553.8,1553.5,0.1331199]
[1744352199788,6.4363,1553.7,1553.5,0.1331199]
[1744352200365,13.74785,1553.8,1553.5,0.1331199]
[1744352200766,12.8731,1553.7,1553.5,0.1331199]
[1744352201104,6.43666,1553.6,1553.5,0.1331199]
[1744352202790,6.4379,1553.3,1553.2,0.8022]
[1744352203161,6.4379,1553.3,1553.2,0.9364024]
[1744352204708,6.4379,1553.3,1553.2,0.1342024]
[1744352204902,6.43832,1553.2,1553.1,0.05]
[1744352205203,6.43832,1553.2,1553.1,0.18770419]
[1744352205929,6.4379,1553.3,1553.1,0.18770419]
[1744352207792,6.43832,1553.2,1553.1,0.18770419]
[1744352208512,7.725942,1553.2,1553.1,0.18770419]
[1744352208998,8.275942,1553.2,1553.1,0.18770419]
[1744352209182,9.058042,1553.2,1553.1,0.18770419]
[1744352209387,12.30238657,1553.2,1553.1,0.18770419]
[1744352209585,15.30238657,1553.2,1553.1,1e-05]
[1744352209806,32.07338657,1553.2,1553.1,1e-05]
[1744352210209,87.26838657,1553.2,1553.1,1e-05]
[1744352210673,87.26838657,1553.2,1552.3,0.8022]
[1744352210674,6.44141,1552.5,1552.3,0.8022]
[1744352211010,7.22219,1552.8,1552.5,0.8022]
[1744352211011,6.44001,1552.8,1552.5,0.8022]
[1744352211411,6.44045,1552.7,1552.6,0.14072128]
[1744352211715,6.44001,1552.8,1552.6,0.14072128]
[1744352212083,12.88023,1552.8,1552.6,0.14072128]
[1744352212281,6.44039,1552.7,1552.6,0.14072128]
[1744352212498,6.44039,1552.7,1552.3,7.24409]
[1744352212707,6.43934,1553.0,1552.6,0.8022]
[1744352212916,6.43968,1552.9,1552.7,0.14042926]
[1744352213510,7.727582,1552.9,1552.6,0.8022]
[1744352213688,6.44012,1552.8,1552.6,0.8022]
[1744352213892,6.44012,1552.8,1552.7,0.14042926]
[1744352214409,14.167322,1552.9,1552.5,6.44102]
[1744352214709,6.43997,1552.8,1552.6,0.14275829]
[1744352214913,6.43997,1552.8,1552.4,13.68508]
[1744352215576,0.7821,1553.0,1552.4,0.8022]
[1744352215783,6.43873,1553.1,1552.8,0.8022]
[1744352216093,6.43873,1553.1,1552.9,0.14098225]
[1744352218496,6.43837,1553.2,1552.9,6.58054225]
[1744352218686,6.43892,1553.1,1552.9,0.14098225]
[1744352219179,12.87798,1553.1,1552.9,0.14098225]
[1744352219384,6.43912,1553.1,1552.9,0.14098225]
[1744352219611,6.43915,1553.0,1552.9,0.14098225]
[1744352219783,6.43912,1553.1,1552.9,0.14098225]
[1744352219977,6.43839,1553.2,1552.9,0.14098225]
[1744352220220,6.43839,1553.2,1552.8,6.43979]
[1744352220432,12.87695,1553.2,1553.0,0.13875254]
[1744352220629,10.315,1553.3,1552.7,6.44034]
[1744352220630,6.43915,1553.0,1552.9,0.13918271]
[1744352220930,6.43873,1553.1,1552.7,6.44024]
[1744352221101,6.4398,1552.9,1552.6,0.8102]
[1744352221436,7.316,1553.2,1552.7,6.44023]
[1744352221708,6.43887,1553.1,1552.7,12.88041]
[1744352222009,6.43932,1553.0,1552.6,13.69168]
[1744352222411,6.43932,1553.0,1552.6,7.25094]
[1744352222615,6.43958,1552.9,1552.6,7.25094]
[1744352222917,0.8073,1552.9,1552.5,3.6968849]
[1744352223093,12.87949,1552.9,1552.5,10.1380849]
[1744352223298,12.87949,1552.9,1552.5,6.4412]
[1744352223816,12.88028,1552.8,1552.4,6.44146]
[1744352224117,6.43999,1552.8,1552.4,6.44142]
[1744352224416,6.44042,1552.7,1552.3,13.6941]
[1744352224594,6.44042,1552.7,1552.3,13.69393]
[1744352224794,6.44042,1552.7,1552.4,6.44157]
[1744352225509,6.44042,1552.7,1552.3,7.25205]
[1744352225710,6.44083,1552.6,1552.3,7.25205]
[1744352226097,7.084462,1552.7,1552.3,13.69391]
[1744352227212,7.084462,1552.7,1552.3,0.8102]
[1744352227380,12.88024,1552.8,1552.4,6.44149]
[1744352227715,6.44171,1552.4,1552.1,0.05]
[1744352227900,7.9503,1552.7,1552.2,0.8102]
[1744352228100,6.44097,1552.6,1552.2,7.25266]
[1744352228305,6.44097,1552.6,1552.2,7.25245]
[1744352228625,6.44097,1552.6,1552.2,13.69472]
[1744352228921,20.02395,1552.7,1552.3,6.44205]
[1744352229120,13.58342,1552.7,1552.4,6.44159]
[1744352229286,13.58261,1552.9,1552.5,7.2512]
[1744352229486,20.02246,1552.9,1552.5,7.2512]
[1744352229710,12.87946,1552.9,1552.5,7.2512]
[1744352229915,6.44041,1552.7,1552.5,0.8102]
[1744352230217,12.88102,1552.7,1552.5,0.8102]
[1744352230513,6.44004,1552.8,1552.5,0.8102]
[1744352230715,6.44004,1552.8,1552.5,7.25124]
[1744352230896,6.44054,1552.7,1552.5,0.8102]
[1744352231718,12.88115,1552.7,1552.5,0.8102]
[1744352232316,12.88115,1552.7,1552.3,10.1387249]
[1744352232317,6.4408,1552.6,1552.3,4.5145849]
[1744352232519,6.4408,1552.6,1552.3,10.9564849]
[1744352232922,6.44001,1552.8,1552.3,4.5145849]
[1744352233099,6.44001,1552.8,1552.4,6.44145]
[1744352233100,12.88022,1552.8,1552.4,6.44145]
[1744352233306,68.79928,1553.0,1552.5,0.13993464]
[1744352233627,12.87701,1553.2,1552.9,0.8177]
[1744352233923,12.87701,1553.2,1553.0,0.13771458]
[1744352234096,6.43847,1553.2,1553.0,0.13771458]
[1744352234949,7.23776,1553.3,1553.0,0.13771458]
[1744352236137,6.43845,1553.2,1553.0,0.13771458]
[1744352236933,12.87706,1553.2,1553.0,0.13771458]
[1744352237141,6.43845,1553.2,1553.0,0.13771458]
[1744352238044,12.877,1553.2,1553.0,0.13771458]
[1744352238242,6.43873,1553.1,1553.0,0.13771458]
[1744352238419,7.80613,1553.2,1553.0,0.13771458]
[1744352238824,7.23774,1553.3,1553.0,0.13771458]
[1744352239411,6.43868,1553.2,1553.0,0.13771458]
[1744352240411,12.87535,1553.4,1553.0,6.57678458]
[1744352240612,6.43798,1553.3,1553.0,6.57678458]
[1744352241221,6.43754,1553.4,1553.0,0.13771458]
[1744352241222,0.7998,1553.4,1553.0,0.13771458]
[1744352241553,0.7998,1553.4,1552.7,17.86783941]
[1744352241554,6.43873,1553.1,1552.7,17.86783941]
[1744352241747,6.43873,1553.1,1552.8,0.13926688]
[1744352243230,7.726441,1553.1,1552.8,0.13926688]
[1744352243434,6.43873,1553.1,1552.8,0.13926688]
[1744352244546,6.43873,1553.1,1552.8,6.57910688]
[1744352244751,6.4384,1553.2,1552.9,6.43953]
[1744352244945,6.43794,1553.3,1553.0,0.13712927]
[1744352245255,6.43719,1553.5,1553.1,12.87726]
[1744352245546,6.43719,1553.5,1553.2,0.13312355]
[1744352245742,12.8745,1553.5,1553.1,12.87726]
[1744352245946,6.43719,1553.5,1553.2,0.13353817]
[1744352246109,1.36737,1553.5,1553.0,7.25666]
[1744352246314,6.43766,1553.4,1553.1,0.13389884]
[1744352246944,6.43766,1553.4,1553.1,6.57261884]
[1744352247951,6.43766,1553.4,1553.1,0.13389884]
[1744352248153,6.43813,1553.3,1553.1,0.13389884]
[1744352248360,7.082133,1553.2,1553.1,0.13389884]
[1744352248545,7.082133,1553.2,1552.8,13.6311]
[1744352248745,7.082133,1553.2,1552.9,0.13676453]
[1744352250359,6.43905,1553.1,1552.9,0.13676453]
[1744352251028,7.082183,1553.2,1552.9,0.13676453]
[1744352251223,7.1471283,1553.1,1552.9,0.13676453]
[1744352251927,6.43915,1553.0,1552.9,0.13676453]
[1744352252123,7.26925,1553.0,1552.9,0.13676453]
[1744352252432,6.43972,1552.9,1552.5,7.19264]
[1744352252638,6.44,1552.8,1552.5,7.19264]
[1744352253356,7.727972,1552.8,1552.5,7.19264]
[1744352253728,14.168222,1552.8,1552.5,0.7515]
[1744352254120,1.287972,1552.8,1552.5,0.7515]
[1744352254355,6.43957,1552.9,1552.5,7.19243]
[1744352254555,12.87944,1552.9,1552.5,7.19243]
[1744352254756,6.43999,1552.8,1552.5,7.19243]
[1744352255459,6.43957,1552.9,1552.5,7.19243]
[1744352256339,12.87944,1552.9,1552.5,13.63348]
[1744352256532,12.87944,1552.9,1552.5,7.19243]
[1744352256737,14.250394,1552.9,1552.5,7.19243]
[1744352257033,6.43887,1553.1,1552.7,6.44009]
[1744352257236,12.87795,1553.1,1552.7,6.44009]
[1744352257433,6.43887,1553.1,1552.7,12.88032]
[1744352258155,12.87784,1553.1,1552.7,6.44009]
[1744352258522,6.43887,1553.1,1552.7,12.88032]
[1744352259138,12.87782,1553.1,1552.7,6.44009]
[1744352259337,6.43887,1553.1,1552.7,12.88031]
[1744352260162,6.43887,1553.1,1552.8,6.43991]
[1744352260656,6.43887,1553.1,1552.8,6.43984]
[1744352261570,6.43929,1553.0,1552.7,6.44034]
[1744352261769,7.083219,1553.0,1552.7,6.44034]
[1744352261930,7.083219,1553.0,1552.6,16.5782549]
[1744352262131,7.083219,1553.0,1552.6,10.1375249]
[1744352262967,7.083219,1553.0,1552.7,6.44037]
[1744352263262,12.8787,1553.0,1552.6,16.5781949]
[1744352263473,12.8787,1553.0,1552.8,0.13792008]
[1744352263655,12.8787,1553.0,1552.7,0.13841939]
[1744352263830,12.8787,1553.0,1552.9,0.13776659]
[1744352264033,12.8787,1553.0,1552.6,10.1375249]
[1744352264034,12.8787,1553.0,1552.8,0.13812756]
[1744352264253,14.16657,1553.0,1552.9,0.1376974]
[1744352264463,7.72716,1553.0,1552.9,0.1376974]
[1744352264675,7.72716,1553.0,1552.7,6.44037]
[1744352264880,6.43882,1553.1,1552.9,0.13762822]
[1744352265078,6.43931,1553.0,1552.8,0.13757425]
[1744352265241,6.43957,1552.9,1552.6,6.44057]
[1744352265647,6.43931,1553.0,1552.6,12.88119]
[1744352265648,12.87872,1553.0,1552.6,12.88119]
[1744352265976,14.166592,1553.0,1552.6,12.88119]
[1744352266153,14.166592,1553.0,1552.6,6.44057]
[1744352267039,6.43994,1552.9,1552.5,10.8892749]
[1744352267236,12.87978,1552.9,1552.5,7.19239]
[1744352267556,13.67408,1552.9,1552.5,7.19239]
[1744352267739,15.1702752,1552.9,1552.5,7.19239]
[1744352267939,6.43998,1552.8,1552.5,6.44089]
[1744352268698,6.43998,1552.8,1552.4,16.5799649]
[1744352269159,6.43998,1552.8,1552.4,6.44154]
[1744352269484,6.44053,1552.7,1552.3,19.86437902]
[1744352269684,7.72858,1552.7,1552.3,19.86437902]
[1744352269901,7.72858,1552.7,1552.3,13.42238902]
[1744352270281,0.7943,1552.6,1552.3,12.8837]
[1744352270487,0.7943,1552.6,1552.3,6.44184]
[1744352270688,1.28805,1552.7,1552.3,0.8145]
[1744352271005,1.28805,1552.7,1552.4,6.44148]
[1744352271173,1.28805,1552.7,1552.4,6.44146]
[1744352272059,0.7943,1552.8,1552.5,6.441]
[1744352272260,6.44002,1552.8,1552.5,6.441]
[1744352272677,1.4961952,1552.9,1552.6,6.44065]
[1744352272877,8.521352,1553.0,1552.6,12.8813]
[1744352273077,8.521352,1553.0,1552.6,13.6958]
[1744352273387,8.521352,1553.0,1552.7,6.44035]
[1744352273797,1.287872,1553.0,1552.7,6.44035]
[1744352274004,13.45276,1553.1,1552.8,6.43997]
[1744352274207,7.014,1553.1,1552.8,12.8798]
[1744352274398,7.014,1553.1,1552.8,6.43983]
[1744352274596,0.8173,1553.2,1552.9,6.43916]
[1744352274797,7.25485,1553.4,1553.0,13.68352]
[1744352275310,7.25485,1553.4,1553.0,13.68349]
[1744352275914,6.43686,1553.6,1553.0,0.8056]
[1744352276225,12.87384,1553.6,1553.2,6.43797]
[1744352277102,6.43711,1553.5,1553.2,6.43797]
[1744352277306,7.724507,1553.5,1553.2,6.43797]
[1744352278022,6.43711,1553.5,1553.2,6.43828]
[1744352278221,14.26769,1553.7,1553.3,0.8056]
[1744352278411,20.7042,1553.7,1553.4,0.13634304]
[1744352278607,20.7042,1553.7,1553.3,7.24326]
[1744352278817,6.43671,1553.6,1553.4,0.13634304]
[1744352279022,6.43826,1553.3,1553.1,3.6968849]
[1744352279221,6.43826,1553.3,1553.2,0.13706462]
[1744352279402,6.43826,1553.3,1553.0,0.8056]
[1744352279403,12.87653,1553.3,1553.0,0.8056]
[1744352279598,6.43826,1553.3,1553.1,0.13424724]
[1744352280714,7.25485,1553.4,1553.1,0.13424724]
[1744352280915,0.725485,1553.3,1553.1,0.13424724]
[1744352281490,0.8173,1553.4,1553.1,6.57272724]
[1744352281900,6.43713,1553.5,1553.1,6.57272724]
[1744352282314,6.43751,1553.4,1553.1,6.57294724]
[1744352282916,6.4371,1553.5,1553.1,13.01153724]
[1744352284431,13.45026,1553.7,1553.4,6.43741]
[1744352284629,13.45026,1553.7,1553.5,0.13373813]
[1744352284829,7.014,1553.7,1553.5,0.13373813]
[1744352285125,69.34831,1554.0,1553.6,6.43648]
[1744352285428,13.70475548,1554.0,1553.7,0.13267136]
[1744352285624,13.68759,1554.0,1553.7,0.13267136]
[1744352285929,6.43583,1553.8,1553.7,0.13267136]
[1744352286295,6.43583,1553.8,1553.5,0.8056]
[1744352286495,6.43583,1553.8,1553.7,0.13267136]
[1744352286715,12.87188,1553.8,1553.6,0.13303193]
[1744352286908,8.273018,1553.8,1553.7,0.13267136]
[1744352287116,9.090318,1553.8,1553.7,0.13267136]
[1744352287430,6.43721,1553.5,1553.2,7.24373]
[1744352288004,0.8173,1553.3,1552.6,6.16602902]
[1744352288205,6.43986,1552.9,1552.6,6.78263192]
[1744352288439,12.87789,1553.1,1552.7,0.8056]
[1744352288721,6.43888,1553.1,1552.7,0.8056]
[1744352288897,6.43888,1553.1,1552.7,7.24598]
[1744352289094,6.43956,1553.0,1552.7,0.8056]
[1744352289300,12.87906,1553.0,1552.7,0.8056]
[1744352289619,12.87906,1553.0,1552.7,6.97162902]
[1744352289821,6.43962,1552.9,1552.7,6.97162902]
[1744352290009,6.43997,1552.8,1552.7,6.16602902]
[1744352290930,7.727929,1552.8,1552.7,6.16602902]
[1744352291430,8.545229,1552.8,1552.7,6.16602902]
[1744352291937,12.88207,1552.6,1552.4,3.6968849]
[1744352292703,6.44164,1552.4,1552.1,0.05]
[1744352292935,6.44164,1552.4,1552.1,6.49278]
[1744352293106,12.88285,1552.5,1552.1,6.49278]
[1744352293941,12.88186,1552.6,1552.3,0.7678]
[1744352294824,6.44131,1552.5,1552.3,0.7678]
[1744352295030,12.88354,1552.4,1552.1,0.8178]
[1744352295606,6.4421,1552.3,1552.1,0.8178]
[1744352295816,6.44246,1552.2,1552.1,0.05]
[1744352298825,6.4421,1552.3,1552.1,0.05]
[1744352299011,19.7726,1552.4,1552.1,0.05]
[1744352299424,6.44171,1552.4,1552.1,0.05]
[1744352299626,6.44125,1552.5,1552.1,6.49284]
[1744352299939,7.19557,1552.6,1552.2,6.44246]
[1744352300141,12.88191,1552.6,1552.2,6.44246]
[1744352300308,6.44124,1552.5,1552.2,6.44246]
[1744352300840,6.44164,1552.4,1552.1,6.4928]
[1744352301554,6.89,1552.7,1552.2,6.44236]
[1744352301555,6.44082,1552.6,1552.2,6.44236]
[1744352301727,12.88184,1552.6,1552.2,12.88464]
[1744352302236,12.88189,1552.6,1552.2,6.44228]
[1744352302440,12.88189,1552.6,1552.3,0.7678]
[1744352302634,6.44082,1552.6,1552.3,0.7678]
[1744352302825,6.43988,1552.9,1552.5,6.44093]
[1744352303020,6.43921,1553.0,1552.6,7.20851]
[1744352303343,19.76773,1553.1,1552.7,6.44025]
[1744352303715,6.43941,1553.0,1552.6,7.20857]
[1744352303915,12.87877,1553.0,1552.6,7.20843]
[1744352304149,12.87883,1553.0,1552.6,7.20843]
[1744352304327,6.43938,1553.0,1552.6,13.64909]
[1744352304834,6.89,1553.1,1552.6,0.7678]
[1744352305040,13.32888,1553.1,1552.7,6.44021]
[1744352305239,19.76793,1553.1,1552.7,6.44021]
[1744352305421,6.43927,1553.0,1552.7,6.44021]
[1744352305623,13.32888,1553.1,1552.7,12.88038]
[1744352305827,19.76787,1553.1,1552.7,6.44017]
[1744352306044,13.32888,1553.1,1552.7,12.88036]
[1744352306350,7.19223,1553.4,1553.0,6.43888]
[1744352306659,7.6437,1553.6,1553.0,10.1359649]
[1744352306867,6.43669,1553.6,1553.2,0.7921]
[1744352307178,6.43627,1553.7,1553.3,6.43753]
[1744352307417,12.87278,1553.7,1553.3,6.43753]
[1744352307684,6.43666,1553.6,1553.2,7.2304]
[1744352307978,6.4373,1553.5,1553.2,0.7921]
[1744352308477,6.4375,1553.4,1553.1,6.4385]
[1744352308667,7.1964,1553.5,1553.1,6.4385]
[1744352308959,6.43754,1553.4,1553.1,6.4385]
[1744352309523,6.43843,1553.2,1553.0,3.6968849]
[1744352309949,6.43843,1553.2,1552.8,7.23187]
[1744352310149,6.4388,1553.1,1552.8,7.23187]
[1744352310963,3.7591,1553.2,1552.6,13.32874]
[1744352311159,6.43893,1553.1,1552.7,6.44029]
[1744352311361,6.4393,1553.0,1552.6,20.56142]
[1744352311560,12.87877,1553.0,1552.6,14.12068]
[1744352311767,12.87877,1553.0,1552.6,7.23268]
[1744352311937,6.4393,1553.0,1552.6,7.23268]
[1744352312130,6.43971,1552.9,1552.6,0.7921]
[1744352312336,6.44084,1552.6,1552.4,4.4889849]
[1744352312534,6.44004,1552.8,1552.4,7.23341]
[1744352312750,12.88031,1552.8,1552.4,7.23341]
[1744352312961,6.44043,1552.7,1552.4,7.23341]
[1744352313164,6.44081,1552.6,1552.2,10.9313949]
[1744352313459,12.88196,1552.6,1552.2,10.9313949]
[1744352313686,6.44246,1552.2,1552.1,0.05]
[1744352314530,6.44246,1552.2,1552.1,0.19571198]
[1744352315346,7.20128,1552.3,1552.1,0.19571198]
[1744352315347,13.64369,1552.3,1552.1,0.19571198]
[1744352315550,7.20128,1552.3,1552.1,0.19571198]
[1744352315747,7.20084,1552.4,1552.1,0.19571198]
[1744352315950,6.44246,1552.2,1552.1,0.19571198]
[1744352316260,7.20156,1552.2,1552.1,0.19571198]
[1744352316547,9.44222,1552.3,1552.1,0.19571198]
[1744352316953,6.44246,1552.2,1552.1,0.19571198]
[1744352317427,6.44222,1552.3,1552.1,0.19571198]
[1744352317960,12.88452,1552.3,1552.1,0.19571198]
[1744352318561,6.44246,1552.2,1552.1,0.19571198]
[1744352321247,6.44222,1552.3,1552.1,0.19571198]
[1744352321456,10.2008,1552.4,1552.1,0.19571198]
[1744352321656,16.64268,1552.4,1552.1,0.19571198]
[1744352321836,10.2008,1552.4,1552.1,0.19571198]
[1744352322058,6.44246,1552.2,1552.1,0.19571198]
[1744352323294,13.33044,1552.5,1552.1,6.63830198]
[1744352323599,0.7972,1552.7,1552.2,0.8166]
[1744352323768,6.44002,1552.8,1552.5,6.4412]
[1744352323958,6.44002,1552.8,1552.5,7.2578]
[1744352324894,6.44002,1552.8,1552.5,0.8166]
[1744352325197,12.88024,1552.8,1552.5,0.8166]
[1744352325688,6.44002,1552.8,1552.5,0.8166]
[1744352326059,6.43963,1552.9,1552.5,13.6987]
[1744352326255,6.43963,1552.9,1552.6,6.44079]
[1744352327437,17.25708,1553.1,1552.6,6.44065]
[1744352327638,20.69609,1553.1,1552.7,6.4402]
[1744352327883,6.4392,1553.0,1552.7,6.4402]
[1744352328289,6.4392,1553.0,1552.6,12.88132]
[1744352328442,6.4392,1553.0,1552.5,0.8166]
[1744352328443,6.44011,1552.8,1552.5,0.8166]
[1744352329366,7.23731,1552.8,1552.5,6.44117]
[1744352329768,7.23731,1552.8,1552.4,10.1383549]
[1744352329972,6.44058,1552.7,1552.4,3.6968849]
[1744352331500,0.7972,1552.8,1552.3,0.8166]
[1744352331501,12.88217,1552.6,1552.3,0.8166]
[1744352331650,6.44126,1552.5,1552.3,0.8166]
[1744352332774,7.23846,1552.5,1552.1,11.0063149]
[1744352332954,13.68006,1552.5,1552.1,11.0063149]
[1744352333154,7.23846,1552.5,1552.1,17.4490149]
[1744352333776,13.6799,1552.5,1552.1,11.0061849]
[1744352334075,6.44094,1552.6,1552.1,4.5634849]
[1744352334475,6.44094,1552.6,1552.2,12.88448]
[1744352334678,12.882,1552.6,1552.2,6.44218]
[1744352334849,12.883,1552.5,1552.1,7.30943]
[1744352335044,6.44144,1552.5,1552.1,13.75212]
[1744352335250,12.8829,1552.5,1552.1,7.30929]
[1744352335450,6.44165,1552.4,1552.1,7.30929]
[1744352335885,6.44144,1552.5,1552.1,13.75202]
[1744352336180,6.44086,1552.6,1552.2,6.44226]
[1744352336386,13.4604,1552.7,1552.1,0.8666]